[Event "Titled Tuesday Blitz May 30 Late 2023"]
[White "Hajiyev, Kanan"]
[Black "Yanchenko, Roman"]
[WhiteFideId "13404148"]
[BlackFideId "4137329"]
[WhiteElo "2103"]
[BlackElo "2491"]
[Result "0-1"]
[Round "01"]
[TimeControl "180+2"]
[Date "2023.05.31"]
[WhiteClock "0:00:44"]
[BlackClock "0:00:42"]

1. d4 {[%clk 0:03:00]}  d5 {[%clk 0:03:00]} 2. c4 {[%clk 0:03:00]}  c6 {[%clk 0:03:00]} 3. cxd5 {[%clk 0:03:00]}  cxd5 {[%clk 0:03:00]} 4. Nc3 {[%clk 0:03:01]}  Nf6 {[%clk 0:02:59]} 5. Nf3 {[%clk 0:03:02]}  a6 {[%clk 0:02:58]} 6. Bg5 {[%clk 0:03:03]}  Nc6 {[%clk 0:02:58]} 7. Bxf6 {[%clk 0:03:03]}  gxf6 {[%clk 0:02:57]} 8. Qb3 {[%clk 0:03:04]}  e6 {[%clk 0:02:56]} 9. e3 {[%clk 0:03:04]}  f5 {[%clk 0:02:56]} 10. Be2 {[%clk 0:03:04]}  Bd7 {[%clk 0:02:57]} 11. O-O {[%clk 0:03:04]}  Bd6 {[%clk 0:02:57]} 12. Rac1 {[%clk 0:03:05]}  Na5 {[%clk 0:02:56]} 13. Qc2 {[%clk 0:03:04]}  b5 {[%clk 0:02:56]} 14. Ne5 {[%clk 0:03:02]}  Bxe5 {[%clk 0:02:50]} 15. dxe5 {[%clk 0:03:03]}  Rc8 {[%clk 0:02:50]} 16. Qd2 {[%clk 0:02:55]}  Nc4 {[%clk 0:02:36]} 17. Bxc4 {[%clk 0:02:51]}  Rxc4 {[%clk 0:02:37]} 18. Ne2 {[%clk 0:02:45]}  O-O {[%clk 0:02:14]} 19. b3 {[%clk 0:02:40]}  Rg4 {[%clk 0:02:13]} 20. h3 {[%clk 0:02:38]}  Rg7 {[%clk 0:02:12]} 21. Nf4 {[%clk 0:02:33]}  Kh8 {[%clk 0:02:03]} 22. Rc5 {[%clk 0:02:30]}  Rfg8 {[%clk 0:02:01]} 23. Rfc1 {[%clk 0:02:29]}  b4 {[%clk 0:01:43]} 24. Qxb4 {[%clk 0:02:21]}  Rxg2+ {[%clk 0:01:22]} 25. Nxg2 {[%clk 0:02:06]}  Qg5 {[%clk 0:01:22]} 26. Kf1 {[%clk 0:01:49]}  Qxg2+ {[%clk 0:01:22]} 27. Ke2 {[%clk 0:01:41]}  Qxh3 {[%clk 0:01:20]} 28. Qf4 {[%clk 0:01:23]}  Bb5+ {[%clk 0:00:46]} 29. Rxb5 {[%clk 0:01:06]}  axb5 {[%clk 0:00:47]} 30. a4 {[%clk 0:00:53]}  bxa4 {[%clk 0:00:42]} 31. bxa4 {[%clk 0:00:52]}  Rg4 {[%clk 0:00:42]} 32. Rc8+ {[%clk 0:00:52]}  Kg7 {[%clk 0:00:42]} 33. Qf3 {[%clk 0:00:47]}  Qxf3+ {[%clk 0:00:42]} 34. Kxf3 {[%clk 0:00:48]}  Rxa4 {[%clk 0:00:43]} 35. Rc7 {[%clk 0:00:47]}  Re4 {[%clk 0:00:42]} 36. Rd7 {[%clk 0:00:47]}  Rxe5 {[%clk 0:00:42]} 37. Rc7 {[%clk 0:00:47]}  Re4 {[%clk 0:00:43]} 38. Rd7 {[%clk 0:00:47]}  h5 {[%clk 0:00:43]} 39. Rd8 {[%clk 0:00:47]}  h4 {[%clk 0:00:43]} 40. Kg2 {[%clk 0:00:46]}  f4 {[%clk 0:00:41]} 41. Kf3 {[%clk 0:00:41]}  fxe3 {[%clk 0:00:41]} 42. fxe3 {[%clk 0:00:42]}  h3 {[%clk 0:00:40]} 43. Ra8 {[%clk 0:00:42]}  h2 {[%clk 0:00:40]} 44. Ra1 {[%clk 0:00:43]}  Rh4 {[%clk 0:00:40]} 45. Kg2 {[%clk 0:00:42]}  h1=Q+ {[%clk 0:00:40]} 46. Rxh1 {[%clk 0:00:43]}  Rxh1 {[%clk 0:00:40]} 47. Kxh1 {[%clk 0:00:44]}  Kf6 {[%clk 0:00:41]} 48. Kg2 {[%clk 0:00:44]}  Ke5 {[%clk 0:00:41]} 49. Kf3 {[%clk 0:00:44]}  Kf5 {[%clk 0:00:42]} 0-1


[Site "https://www.chess.com"]

[Event "Titled Tuesday Blitz May 30 Late 2023"]
[White "Brodowski, Piotr"]
[Black "Tarasova, Viktoriya"]
[WhiteFideId "1124480"]
[BlackFideId "4175840"]
[WhiteElo "2351"]
[BlackElo "2182"]
[Result "1-0"]
[Round "01"]
[TimeControl "180+2"]
[Date "2023.05.31"]
[WhiteClock "0:00:34"]
[BlackClock "0:00:09"]

1. c4 {[%clk 0:02:57]}  Nf6 {[%clk 0:02:59]} 2. Nc3 {[%clk 0:02:56]}  e5 {[%clk 0:02:59]} 3. Nf3 {[%clk 0:02:55]}  Nc6 {[%clk 0:02:59]} 4. e4 {[%clk 0:02:55]}  Bb4 {[%clk 0:02:58]} 5. d3 {[%clk 0:02:54]}  h6 {[%clk 0:02:55]} 6. a3 {[%clk 0:02:54]}  Bxc3+ {[%clk 0:02:50]} 7. bxc3 {[%clk 0:02:52]}  d6 {[%clk 0:02:51]} 8. g3 {[%clk 0:02:52]}  Bg4 {[%clk 0:02:50]} 9. h3 {[%clk 0:02:52]}  Bxf3 {[%clk 0:02:49]} 10. Qxf3 {[%clk 0:02:51]}  O-O {[%clk 0:02:47]} 11. Bg2 {[%clk 0:02:52]}  Ne7 {[%clk 0:02:43]} 12. O-O {[%clk 0:02:51]}  Nd7 {[%clk 0:02:35]} 13. Qe2 {[%clk 0:02:51]}  c6 {[%clk 0:02:32]} 14. f4 {[%clk 0:02:51]}  f6 {[%clk 0:02:32]} 15. Rb1 {[%clk 0:02:50]}  Rb8 {[%clk 0:02:31]} 16. d4 {[%clk 0:02:49]}  Qa5 {[%clk 0:02:23]} 17. Qd3 {[%clk 0:02:46]}  Rfd8 {[%clk 0:02:19]} 18. h4 {[%clk 0:02:46]}  Qa6 {[%clk 0:02:18]} 19. Bh3 {[%clk 0:02:43]}  d5 {[%clk 0:02:07]} 20. exd5 {[%clk 0:02:39]}  cxd5 {[%clk 0:02:07]} 21. fxe5 {[%clk 0:02:40]}  fxe5 {[%clk 0:01:58]} 22. Rb5 {[%clk 0:01:58]}  exd4 {[%clk 0:01:39]} 23. cxd4 {[%clk 0:01:49]}  Rbc8 {[%clk 0:01:00]} 24. Qe2 {[%clk 0:01:39]}  Ng6 {[%clk 0:00:41]} 25. Rxd5 {[%clk 0:01:14]}  Ngf8 {[%clk 0:00:20]} 26. Rb5 {[%clk 0:00:39]}  Qd6 {[%clk 0:00:17]} 27. Qf2 {[%clk 0:00:36]}  Rxc4 {[%clk 0:00:14]} 28. Rxb7 {[%clk 0:00:33]}  Rxd4 {[%clk 0:00:13]} 29. Bf4 {[%clk 0:00:32]}  Qd5 {[%clk 0:00:13]} 30. Bg2 {[%clk 0:00:32]}  Qf7 {[%clk 0:00:12]} 31. Rxa7 {[%clk 0:00:32]}  Rd3 {[%clk 0:00:11]} 32. Qe2 {[%clk 0:00:31]}  Qc4 {[%clk 0:00:08]} 33. Qf2 {[%clk 0:00:30]}  Qd4 {[%clk 0:00:08]} 34. Qxd4 {[%clk 0:00:30]}  Rxd4 {[%clk 0:00:08]} 35. Re1 {[%clk 0:00:30]}  Nf6 {[%clk 0:00:07]} 36. Ree7 {[%clk 0:00:30]}  R4d7 {[%clk 0:00:07]} 37. Rexd7 {[%clk 0:00:30]}  Rxd7 {[%clk 0:00:08]} 38. Rxd7 {[%clk 0:00:30]}  N8xd7 {[%clk 0:00:08]} 39. a4 {[%clk 0:00:31]}  Nc5 {[%clk 0:00:09]} 40. a5 {[%clk 0:00:31]}  Na6 {[%clk 0:00:08]} 41. Bb7 {[%clk 0:00:31]}  Nc5 {[%clk 0:00:08]} 42. a6 {[%clk 0:00:31]}  Nxa6 {[%clk 0:00:08]} 43. Bxa6 {[%clk 0:00:31]}  Kf7 {[%clk 0:00:09]} 44. Bc4+ {[%clk 0:00:32]}  Kg6 {[%clk 0:00:09]} 45. Kg2 {[%clk 0:00:32]}  Nh5 {[%clk 0:00:09]} 46. Bd3+ {[%clk 0:00:32]}  Kf6 {[%clk 0:00:10]} 47. Bc1 {[%clk 0:00:31]}  g5 {[%clk 0:00:10]} 48. hxg5+ {[%clk 0:00:31]}  hxg5 {[%clk 0:00:11]} 49. Be2 {[%clk 0:00:30]}  Ng7 {[%clk 0:00:11]} 50. Bb2+ {[%clk 0:00:30]}  Kg6 {[%clk 0:00:11]} 51. Bxg7 {[%clk 0:00:31]}  Kxg7 {[%clk 0:00:11]} 52. Kf3 {[%clk 0:00:32]}  Kg6 {[%clk 0:00:12]} 53. Kg4 {[%clk 0:00:32]}  Kf6 {[%clk 0:00:13]} 54. Kh5 {[%clk 0:00:33]}  Kf5 {[%clk 0:00:13]} 55. g4+ {[%clk 0:00:33]}  Kf4 {[%clk 0:00:09]} 56. Bd1 {[%clk 0:00:34]} 1-0


[Site "https://www.chess.com"]

[Event "Titled Tuesday Blitz May 30 Late 2023"]
[White "KorolDimitriy75"]
[Black "Bashirli, Nail"]
[BlackFideId "13406809"]
[WhiteElo "2419"]
[BlackElo "2311"]
[Result "1-0"]
[Round "01"]
[TimeControl "180+2"]
[Date "2023.05.31"]
[WhiteClock "0:00:35"]
[BlackClock "0:00:00"]

1. d4 {[%clk 0:02:59]}  Nf6 {[%clk 0:03:00]} 2. c4 {[%clk 0:02:58]}  e6 {[%clk 0:03:01]} 3. Nc3 {[%clk 0:02:58]}  Bb4 {[%clk 0:03:01]} 4. Qc2 {[%clk 0:02:58]}  O-O {[%clk 0:03:01]} 5. e4 {[%clk 0:02:58]}  d5 {[%clk 0:02:59]} 6. cxd5 {[%clk 0:02:59]}  exd5 {[%clk 0:03:00]} 7. e5 {[%clk 0:02:59]}  Ne4 {[%clk 0:03:00]} 8. Bd3 {[%clk 0:03:00]}  c5 {[%clk 0:03:01]} 9. Ne2 {[%clk 0:03:00]}  Nc6 {[%clk 0:02:59]} 10. O-O {[%clk 0:02:59]}  cxd4 {[%clk 0:02:28]} 11. Nxd5 {[%clk 0:02:59]}  Qxd5 {[%clk 0:02:26]} 12. Bxe4 {[%clk 0:02:59]}  Qxe5 {[%clk 0:02:26]} 13. Bxh7+ {[%clk 0:03:00]}  Kh8 {[%clk 0:02:25]} 14. Bf4 {[%clk 0:03:00]}  Qh5 {[%clk 0:02:25]} 15. Be4 {[%clk 0:03:00]}  Re8 {[%clk 0:02:08]} 16. f3 {[%clk 0:02:36]}  Be6 {[%clk 0:01:40]} 17. Rad1 {[%clk 0:01:59]}  Rad8 {[%clk 0:01:27]} 18. a3 {[%clk 0:01:54]}  Bc5 {[%clk 0:01:17]} 19. Kh1 {[%clk 0:01:54]}  Bb6 {[%clk 0:01:02]} 20. Ng3 {[%clk 0:01:47]}  Qc5 {[%clk 0:00:59]} 21. Qd2 {[%clk 0:01:43]}  Bc4 {[%clk 0:00:54]} 22. Rc1 {[%clk 0:01:38]}  Qb5 {[%clk 0:00:52]} 23. Rfe1 {[%clk 0:01:37]}  d3 {[%clk 0:00:48]} 24. Bg5 {[%clk 0:01:06]}  f6 {[%clk 0:00:37]} 25. Bxf6 {[%clk 0:01:06]}  Kg8 {[%clk 0:00:26]} 26. Bc3 {[%clk 0:01:04]}  Bd4 {[%clk 0:00:23]} 27. Nf5 {[%clk 0:01:02]}  Bxc3 {[%clk 0:00:22]} 28. Rxc3 {[%clk 0:01:03]}  Be6 {[%clk 0:00:18]} 29. a4 {[%clk 0:00:50]}  Qe5 {[%clk 0:00:14]} 30. Ng3 {[%clk 0:00:44]}  Nb4 {[%clk 0:00:09]} 31. Bh7+ {[%clk 0:00:42]}  Kxh7 {[%clk 0:00:10]} 32. Rxe5 {[%clk 0:00:43]}  Bf7 {[%clk 0:00:09]} 33. Rxe8 {[%clk 0:00:40]}  Rxe8 {[%clk 0:00:10]} 34. h3 {[%clk 0:00:40]}  Bg6 {[%clk 0:00:10]} 35. f4 {[%clk 0:00:40]}  Nd5 {[%clk 0:00:08]} 36. f5 {[%clk 0:00:39]}  Bf7 {[%clk 0:00:07]} 37. Rxd3 {[%clk 0:00:38]}  Nf6 {[%clk 0:00:08]} 38. Qg5 {[%clk 0:00:37]}  Re1+ {[%clk 0:00:07]} 39. Kh2 {[%clk 0:00:37]}  Re5 {[%clk 0:00:00]} 40. Rd6 {[%clk 0:00:35]} 1-0


[Site "https://www.chess.com"]

[Event "Titled Tuesday Blitz May 30 Late 2023"]
[White "Halkias, Stelios"]
[Black "Srdanovic, Jovana"]
[WhiteFideId "4201809"]
[BlackFideId "954810"]
[WhiteElo "2451"]
[BlackElo "2169"]
[Result "1-0"]
[Round "01"]
[TimeControl "180+2"]
[Date "2023.05.31"]
[WhiteClock "0:02:33"]
[BlackClock "0:01:33"]

1. d4 {[%clk 0:02:56]}  d5 {[%clk 0:02:59]} 2. Nf3 {[%clk 0:02:56]}  Nf6 {[%clk 0:02:59]} 3. c4 {[%clk 0:02:57]}  c6 {[%clk 0:02:59]} 4. cxd5 {[%clk 0:02:56]}  cxd5 {[%clk 0:02:59]} 5. Nc3 {[%clk 0:02:57]}  Nc6 {[%clk 0:02:59]} 6. Bf4 {[%clk 0:02:58]}  Bf5 {[%clk 0:02:59]} 7. e3 {[%clk 0:02:58]}  e6 {[%clk 0:02:59]} 8. Bb5 {[%clk 0:02:58]}  Bb4 {[%clk 0:02:54]} 9. Ne5 {[%clk 0:02:56]}  O-O {[%clk 0:01:58]} 10. Bxc6 {[%clk 0:02:44]}  Bxc3+ {[%clk 0:01:51]} 11. bxc3 {[%clk 0:02:44]}  bxc6 {[%clk 0:01:51]} 12. g4 {[%clk 0:02:43]}  Be4 {[%clk 0:01:48]} 13. f3 {[%clk 0:02:42]}  Bg6 {[%clk 0:01:46]} 14. Nxc6 {[%clk 0:02:34]}  Qc8 {[%clk 0:01:35]} 15. Ne7+ {[%clk 0:02:33]}  Kh8 {[%clk 0:01:33]} 16. Nxc8 {[%clk 0:02:33]} 1-0


[Site "https://www.chess.com"]

[Event "Titled Tuesday Blitz May 30 Late 2023"]
[White "EsmeraldasAnderson03"]
[Black "Matinian, Nikita"]
[BlackFideId "24129100"]
[WhiteElo "2405"]
[BlackElo "2422"]
[Result "0-1"]
[Round "01"]
[TimeControl "180+2"]
[Date "2023.05.31"]
[WhiteClock "0:00:00"]
[BlackClock "0:00:37"]

1. d4 {[%clk 0:02:35]}  g6 {[%clk 0:02:58]} 2. Bf4 {[%clk 0:02:26]}  Bg7 {[%clk 0:02:57]} 3. e3 {[%clk 0:02:21]}  Nf6 {[%clk 0:02:50]} 4. Nf3 {[%clk 0:02:15]}  O-O {[%clk 0:02:50]} 5. h3 {[%clk 0:02:13]}  d6 {[%clk 0:02:50]} 6. Bh2 {[%clk 0:02:11]}  Nbd7 {[%clk 0:02:50]} 7. Be2 {[%clk 0:02:11]}  b6 {[%clk 0:02:47]} 8. O-O {[%clk 0:02:10]}  Bb7 {[%clk 0:02:47]} 9. c4 {[%clk 0:02:04]}  Ne4 {[%clk 0:02:47]} 10. Qc2 {[%clk 0:01:59]}  e6 {[%clk 0:02:39]} 11. Nc3 {[%clk 0:01:57]}  f5 {[%clk 0:02:39]} 12. b4 {[%clk 0:01:48]}  g5 {[%clk 0:02:33]} 13. Nd2 {[%clk 0:01:34]}  Nxc3 {[%clk 0:02:28]} 14. Qxc3 {[%clk 0:01:35]}  f4 {[%clk 0:02:23]} 15. Bf3 {[%clk 0:01:30]}  Bxf3 {[%clk 0:02:18]} 16. Nxf3 {[%clk 0:01:31]}  Qf6 {[%clk 0:02:14]} 17. Qd3 {[%clk 0:01:22]}  Rae8 {[%clk 0:02:09]} 18. Qe4 {[%clk 0:01:13]}  Rf7 {[%clk 0:01:50]} 19. Rad1 {[%clk 0:01:01]}  Nf8 {[%clk 0:01:47]} 20. Qc6 {[%clk 0:00:59]}  Ree7 {[%clk 0:01:43]} 21. c5 {[%clk 0:00:58]}  Rd7 {[%clk 0:01:32]} 22. Nd2 {[%clk 0:00:42]}  Qg6 {[%clk 0:01:26]} 23. exf4 {[%clk 0:00:22]}  gxf4 {[%clk 0:01:26]} 24. Nf3 {[%clk 0:00:20]}  Bf6 {[%clk 0:01:21]} 25. Kh1 {[%clk 0:00:20]}  Bd8 {[%clk 0:01:17]} 26. Rfe1 {[%clk 0:00:20]}  Rg7 {[%clk 0:01:14]} 27. Rg1 {[%clk 0:00:14]}  Qh5 {[%clk 0:01:08]} 28. Rde1 {[%clk 0:00:13]}  Rdf7 {[%clk 0:01:04]} 29. Qa8 {[%clk 0:00:10]}  Bh4 {[%clk 0:01:00]} 30. Nxh4 {[%clk 0:00:09]}  Qxh4 {[%clk 0:01:00]} 31. Rxe6 {[%clk 0:00:10]}  Qxf2 {[%clk 0:00:54]} 32. a4 {[%clk 0:00:06]}  bxc5 {[%clk 0:00:50]} 33. dxc5 {[%clk 0:00:06]}  dxc5 {[%clk 0:00:50]} 34. b5 {[%clk 0:00:06]}  c4 {[%clk 0:00:44]} 35. Qd5 {[%clk 0:00:05]}  Nxe6 {[%clk 0:00:41]} 36. Qxe6 {[%clk 0:00:00]}  f3 {[%clk 0:00:37]} 0-1


[Site "https://www.chess.com"]

[Event "Titled Tuesday Blitz May 30 Late 2023"]
[White "Prohaszka, Peter"]
[Black "Ansh M Shah"]
[WhiteFideId "726265"]
[BlackFideId "25033379"]
[WhiteElo "2626"]
[BlackElo "2084"]
[Result "1-0"]
[Round "01"]
[TimeControl "180+2"]
[Date "2023.05.31"]
[WhiteClock "0:01:25"]
[BlackClock "0:00:29"]

1. d4 {[%clk 0:02:58]}  Nf6 {[%clk 0:02:59]} 2. c3 {[%clk 0:02:56]}  e6 {[%clk 0:02:57]} 3. Bg5 {[%clk 0:02:56]}  h6 {[%clk 0:02:57]} 4. Bh4 {[%clk 0:02:55]}  d5 {[%clk 0:02:57]} 5. Nd2 {[%clk 0:02:54]}  b6 {[%clk 0:02:57]} 6. e3 {[%clk 0:02:54]}  Bb7 {[%clk 0:02:52]} 7. f4 {[%clk 0:02:54]}  Be7 {[%clk 0:02:41]} 8. Ngf3 {[%clk 0:02:54]}  Nbd7 {[%clk 0:02:40]} 9. Ne5 {[%clk 0:02:51]}  Ne4 {[%clk 0:02:36]} 10. Bxe7 {[%clk 0:02:50]}  Qxe7 {[%clk 0:02:37]} 11. Nxe4 {[%clk 0:02:32]}  dxe4 {[%clk 0:02:38]} 12. Bb5 {[%clk 0:02:30]}  c6 {[%clk 0:01:39]} 13. Nxc6 {[%clk 0:02:27]}  Bxc6 {[%clk 0:01:38]} 14. Bxc6 {[%clk 0:02:27]}  Rc8 {[%clk 0:01:35]} 15. Qa4 {[%clk 0:02:20]}  Rc7 {[%clk 0:01:31]} 16. Bxe4 {[%clk 0:02:11]}  O-O {[%clk 0:01:30]} 17. O-O {[%clk 0:02:11]}  Qd6 {[%clk 0:01:18]} 18. Rad1 {[%clk 0:02:08]}  Re8 {[%clk 0:01:12]} 19. Bf3 {[%clk 0:02:06]}  Rec8 {[%clk 0:01:11]} 20. g3 {[%clk 0:02:04]}  Nf8 {[%clk 0:01:06]} 21. e4 {[%clk 0:02:02]}  Ng6 {[%clk 0:01:05]} 22. e5 {[%clk 0:02:00]}  Qe7 {[%clk 0:01:06]} 23. Be4 {[%clk 0:01:59]}  Nf8 {[%clk 0:01:05]} 24. Rf2 {[%clk 0:01:52]}  Nd7 {[%clk 0:00:59]} 25. f5 {[%clk 0:01:49]}  exf5 {[%clk 0:00:59]} 26. Bxf5 {[%clk 0:01:49]}  Re8 {[%clk 0:00:53]} 27. Rdf1 {[%clk 0:01:48]}  Nf8 {[%clk 0:00:54]} 28. Qb3 {[%clk 0:01:44]}  Ne6 {[%clk 0:00:52]} 29. Qd1 {[%clk 0:01:30]}  Ng5 {[%clk 0:00:47]} 30. h4 {[%clk 0:01:30]}  Ne6 {[%clk 0:00:46]} 31. d5 {[%clk 0:01:30]}  Qc5 {[%clk 0:00:38]} 32. dxe6 {[%clk 0:01:28]}  fxe6 {[%clk 0:00:39]} 33. Bg6 {[%clk 0:01:27]}  Rf8 {[%clk 0:00:29]} 34. Qd4 {[%clk 0:01:25]} 1-0


[Site "https://www.chess.com"]

[Event "Titled Tuesday Blitz May 30 Late 2023"]
[White "Gutkin, Ilya"]
[Black "Nazari, Arad"]
[WhiteFideId "16203470"]
[BlackFideId "12577324"]
[WhiteElo "2265"]
[BlackElo "2175"]
[Result "1-0"]
[Round "01"]
[TimeControl "180+2"]
[Date "2023.05.31"]
[WhiteClock "0:00:09"]
[BlackClock "0:00:05"]

1. Nf3 {[%clk 0:03:00]}  c5 {[%clk 0:02:24]} 2. c4 {[%clk 0:02:58]}  Nc6 {[%clk 0:02:17]} 3. d4 {[%clk 0:02:58]}  cxd4 {[%clk 0:02:17]} 4. Nxd4 {[%clk 0:02:59]}  g6 {[%clk 0:02:15]} 5. e4 {[%clk 0:02:59]}  Bg7 {[%clk 0:02:15]} 6. Be3 {[%clk 0:02:59]}  Nf6 {[%clk 0:02:15]} 7. Nc3 {[%clk 0:02:59]}  O-O {[%clk 0:02:15]} 8. Be2 {[%clk 0:02:58]}  a5 {[%clk 0:02:16]} 9. O-O {[%clk 0:02:51]}  d6 {[%clk 0:02:16]} 10. f3 {[%clk 0:02:45]}  Bd7 {[%clk 0:02:02]} 11. Qd2 {[%clk 0:02:44]}  a4 {[%clk 0:02:01]} 12. Rfd1 {[%clk 0:02:30]}  Qa5 {[%clk 0:01:48]} 13. Nd5 {[%clk 0:02:21]}  Nxd5 {[%clk 0:01:46]} 14. cxd5 {[%clk 0:02:20]}  Nxd4 {[%clk 0:01:37]} 15. Bxd4 {[%clk 0:02:20]}  Rfc8 {[%clk 0:01:27]} 16. Qxa5 {[%clk 0:02:12]}  Rxa5 {[%clk 0:01:25]} 17. Bxg7 {[%clk 0:02:11]}  Kxg7 {[%clk 0:01:22]} 18. Rac1 {[%clk 0:02:11]}  Rac5 {[%clk 0:01:21]} 19. Rxc5 {[%clk 0:02:11]}  Rxc5 {[%clk 0:01:22]} 20. Bd3 {[%clk 0:02:11]}  Bb5 {[%clk 0:01:14]} 21. Bxb5 {[%clk 0:02:10]}  Rxb5 {[%clk 0:01:14]} 22. Rd2 {[%clk 0:02:10]}  f5 {[%clk 0:01:10]} 23. Kf2 {[%clk 0:02:09]}  Kf6 {[%clk 0:01:08]} 24. Ke3 {[%clk 0:02:06]}  Rb4 {[%clk 0:01:03]} 25. exf5 {[%clk 0:01:42]}  gxf5 {[%clk 0:00:59]} 26. g3 {[%clk 0:01:41]}  Kg5 {[%clk 0:00:39]} 27. h4+ {[%clk 0:01:23]}  Kh5 {[%clk 0:00:31]} 28. Rd4 {[%clk 0:01:22]}  Rxd4 {[%clk 0:00:28]} 29. Kxd4 {[%clk 0:01:19]}  f4 {[%clk 0:00:28]} 30. g4+ {[%clk 0:00:20]}  Kxh4 {[%clk 0:00:28]} 31. Ke4 {[%clk 0:00:21]}  Kg3 {[%clk 0:00:23]} 32. g5 {[%clk 0:00:21]}  b6 {[%clk 0:00:16]} 33. b4 {[%clk 0:00:13]}  b5 {[%clk 0:00:04]} 34. a3 {[%clk 0:00:13]}  Kf2 {[%clk 0:00:04]} 35. Kxf4 {[%clk 0:00:13]}  Ke2 {[%clk 0:00:05]} 36. Ke4 {[%clk 0:00:13]}  Kd2 {[%clk 0:00:04]} 37. f4 {[%clk 0:00:13]}  Kc2 {[%clk 0:00:03]} 38. f5 {[%clk 0:00:14]}  Kb3 {[%clk 0:00:04]} 39. f6 {[%clk 0:00:11]}  exf6 {[%clk 0:00:05]} 40. gxf6 {[%clk 0:00:12]}  Kxa3 {[%clk 0:00:05]} 41. f7 {[%clk 0:00:12]}  Kb2 {[%clk 0:00:05]} 42. f8=Q {[%clk 0:00:13]}  a3 {[%clk 0:00:06]} 43. Qf2+ {[%clk 0:00:11]}  Kb1 {[%clk 0:00:06]} 44. Qe1+ {[%clk 0:00:12]}  Kb2 {[%clk 0:00:06]} 45. Qd2+ {[%clk 0:00:12]}  Kb3 {[%clk 0:00:07]} 46. Qd1+ {[%clk 0:00:09]}  Kb2 {[%clk 0:00:07]} 47. Kd3 {[%clk 0:00:09]}  a2 {[%clk 0:00:07]} 48. Qc2+ {[%clk 0:00:09]}  Ka3 {[%clk 0:00:08]} 49. Qc1+ {[%clk 0:00:08]}  Kb3 {[%clk 0:00:08]} 50. Qc3+ {[%clk 0:00:08]}  Ka4 {[%clk 0:00:05]} 51. Qb2 {[%clk 0:00:09]} 1-0


[Site "https://www.chess.com"]

[Event "Titled Tuesday Blitz May 30 Late 2023"]
[White "Martinez Ramirez, Lennis"]
[Black "Papp, Petra"]
[WhiteFideId "3509079"]
[BlackFideId "739049"]
[WhiteElo "2410"]
[BlackElo "2259"]
[Result "1-0"]
[Round "01"]
[TimeControl "180+2"]
[Date "2023.05.31"]
[WhiteClock "0:00:19"]
[BlackClock "0:00:00"]

1. c4 {[%clk 0:02:59]}  e5 {[%clk 0:02:58]} 2. Nc3 {[%clk 0:02:57]}  Nc6 {[%clk 0:02:58]} 3. g3 {[%clk 0:02:57]}  Bc5 {[%clk 0:02:57]} 4. Bg2 {[%clk 0:02:55]}  d6 {[%clk 0:02:57]} 5. a3 {[%clk 0:02:55]}  a6 {[%clk 0:02:57]} 6. b4 {[%clk 0:02:52]}  Ba7 {[%clk 0:02:57]} 7. e3 {[%clk 0:02:52]}  h5 {[%clk 0:02:56]} 8. h3 {[%clk 0:02:52]}  h4 {[%clk 0:02:55]} 9. g4 {[%clk 0:02:52]}  f5 {[%clk 0:02:54]} 10. gxf5 {[%clk 0:02:53]}  Bxf5 {[%clk 0:02:54]} 11. d3 {[%clk 0:02:53]}  Nf6 {[%clk 0:02:52]} 12. Nf3 {[%clk 0:02:49]}  Qd7 {[%clk 0:02:49]} 13. Ng5 {[%clk 0:02:49]}  O-O-O {[%clk 0:02:42]} 14. b5 {[%clk 0:02:46]}  axb5 {[%clk 0:02:40]} 15. Nxb5 {[%clk 0:02:36]}  Bb6 {[%clk 0:02:34]} 16. Rb1 {[%clk 0:02:22]}  d5 {[%clk 0:02:23]} 17. cxd5 {[%clk 0:02:06]}  Nxd5 {[%clk 0:02:16]} 18. e4 {[%clk 0:02:06]}  Nf4 {[%clk 0:01:49]} 19. Bxf4 {[%clk 0:02:02]}  exf4 {[%clk 0:01:49]} 20. exf5 {[%clk 0:02:01]}  Qxf5 {[%clk 0:01:37]} 21. Qg4 {[%clk 0:01:57]}  Qxg4 {[%clk 0:01:35]} 22. hxg4 {[%clk 0:01:56]}  Ne5 {[%clk 0:01:34]} 23. O-O {[%clk 0:01:43]}  Rdf8 {[%clk 0:01:13]} 24. Bh3 {[%clk 0:01:31]}  f3 {[%clk 0:01:11]} 25. Ne6 {[%clk 0:01:29]}  Rf7 {[%clk 0:00:59]} 26. d4 {[%clk 0:01:29]}  Ng6 {[%clk 0:00:51]} 27. g5 {[%clk 0:01:30]}  Kb8 {[%clk 0:00:48]} 28. Rfc1 {[%clk 0:01:21]}  Nf4 {[%clk 0:00:44]} 29. Nxf4 {[%clk 0:01:20]}  Rxf4 {[%clk 0:00:44]} 30. Rc4 {[%clk 0:01:09]}  Rh5 {[%clk 0:00:43]} 31. Kh2 {[%clk 0:01:01]}  Rxg5 {[%clk 0:00:43]} 32. a4 {[%clk 0:00:58]}  Re4 {[%clk 0:00:41]} 33. Rb3 {[%clk 0:00:45]}  Rf4 {[%clk 0:00:28]} 34. Rcc3 {[%clk 0:00:42]}  Rg6 {[%clk 0:00:09]} 35. Rxf3 {[%clk 0:00:40]}  Rgf6 {[%clk 0:00:09]} 36. Rxf4 {[%clk 0:00:40]}  Rxf4 {[%clk 0:00:09]} 37. Kg2 {[%clk 0:00:40]}  Re4 {[%clk 0:00:08]} 38. Rf3 {[%clk 0:00:39]}  Re8 {[%clk 0:00:07]} 39. d5 {[%clk 0:00:37]}  c6 {[%clk 0:00:06]} 40. dxc6 {[%clk 0:00:36]}  bxc6 {[%clk 0:00:07]} 41. Nd6 {[%clk 0:00:36]}  Rd8 {[%clk 0:00:08]} 42. Nf5 {[%clk 0:00:34]}  g6 {[%clk 0:00:07]} 43. Nxh4 {[%clk 0:00:32]}  c5 {[%clk 0:00:07]} 44. Be6 {[%clk 0:00:30]}  Kc7 {[%clk 0:00:06]} 45. Nxg6 {[%clk 0:00:29]}  Rd6 {[%clk 0:00:06]} 46. Rf7+ {[%clk 0:00:27]}  Kb8 {[%clk 0:00:05]} 47. Bf5 {[%clk 0:00:26]}  c4 {[%clk 0:00:05]} 48. Ne5 {[%clk 0:00:24]}  Bc7 {[%clk 0:00:04]} 49. Nxc4 {[%clk 0:00:23]}  Rd4 {[%clk 0:00:05]} 50. Be6 {[%clk 0:00:19]}  Rd3 {[%clk 0:00:04]} 51. a5 {[%clk 0:00:19]}  Rd1 {[%clk 0:00:04]} 52. a6 {[%clk 0:00:19]}  Ra1 {[%clk 0:00:04]} 53. Rf8+ {[%clk 0:00:18]}  Ka7 {[%clk 0:00:03]} 54. Bc8 {[%clk 0:00:18]}  Ra4 {[%clk 0:00:02]} 55. Ne3 {[%clk 0:00:18]}  Bb8 {[%clk 0:00:01]} 56. Rf7+ {[%clk 0:00:18]}  Ka8 {[%clk 0:00:01]} 57. Bb7+ {[%clk 0:00:17]}  Ka7 {[%clk 0:00:01]} 58. Bc6+ {[%clk 0:00:18]}  Kb6 {[%clk 0:00:00]} 59. Bxa4 {[%clk 0:00:19]} 1-0


[Site "https://www.chess.com"]